bitfinex-derivatives/quotes_ETHF0:USTF0_20250624
["timestamp","ask_amount","ask_price","bid_price","bid_amount"]
[1750731015078,1.329,2393.0,2392.6,7.686]
[1750731015280,1.329,2393.0,2392.9,0.83518]
[1750731015480,5.21285867,2393.4,2392.9,7.686]
[1750731015481,3.2078,2393.4,2392.9,7.686]
[1750731015688,4.5433,2393.4,2393.0,7.686]
[1750731015888,4.5433,2393.4,2393.1,8.52109]
[1750731016182,3.2078,2393.4,2393.2,7.688]
[1750731016387,3.2078,2393.4,2393.3,8.52304]
[1750731016783,3.2078,2394.4,2393.3,15.8958]
[1750731017081,3.29132823,2394.4,2393.7,3.2078]
[1750731017275,3.29132823,2394.4,2394.3,0.83469]
[1750731017475,4.12597823,2394.4,2393.8,1.4]
[1750731017786,3.2078,2394.1,2393.7,0.83489]
[1750731017978,3.2078,2394.1,2393.8,7.688]
[1750731018178,4.5433,2394.1,2393.6,1.4]
[1750731018482,3.2078,2394.1,2393.7,7.688]
[1750731018682,1.3405,2394.3,2394.0,0.83478]
[1750731018879,1.3405,2394.3,2394.1,7.688]
[1750731019186,3.29132823,2394.4,2394.2,8.52271]
[1750731019390,3.29132823,2394.4,2394.3,7.688]
[1750731019590,3.29132823,2394.4,2394.3,8.52269]
[1750731019884,3.29132823,2394.4,2394.3,7.688]
[1750731020081,3.29132823,2394.4,2394.3,8.52269]
[1750731020286,3.2078,2394.4,2394.3,0.83469]
[1750731020590,3.2078,2394.4,2394.2,0.0637515]
[1750731021278,4.5483,2394.4,2394.2,0.0637515]
[1750731021685,5.38298,2394.4,2394.2,0.0637515]
[1750731021985,0.83469,2394.3,2394.2,0.0637515]
[1750731022183,1.3745,2394.3,2394.2,0.0637515]
[1750731022386,2.20919,2394.3,2394.2,0.0637515]
[1750731022577,3.2078,2394.4,2394.2,0.0637515]
[1750731022989,0.8344,2395.2,2394.2,5.0637515]
[1750731023291,1.3745,2395.2,2394.4,3.2078]
[1750731023486,0.83449,2394.9,2394.5,8.52359]
[1750731023693,3.2078,2394.7,2394.3,48.1]
[1750731023885,0.83469,2394.3,2394.2,0.0637515]
[1750731024091,0.83474,2394.2,2392.7,7.689]
[1750731024289,3.2078,2393.9,2393.4,0.83497]
[1750731024592,3.2078,2394.2,2393.6,3.2078]
[1750731024989,3.2078,2394.2,2394.1,0.83476]
[1750731025493,3.2078,2394.2,2394.1,8.70276]
[1750731026494,3.2078,2394.2,2394.1,7.868]
[1750731029296,4.04252,2394.2,2394.1,7.868]
[1750731029500,0.83479,2394.0,2393.9,2.924]
[1750731029999,5.83479,2394.0,2393.9,2.924]
[1750731031397,5.0,2394.0,2393.2,0.83506]
[1750731031599,4.04274,2393.6,2393.3,0.83503]
[1750731031798,4.04273,2393.6,2393.4,0.835]
[1750731031994,3.2078,2393.6,2393.1,7.868]
[1750731032497,3.2078,2393.9,2393.3,3.2078]
[1750731032703,0.83484,2393.9,2393.6,0.83491]
[1750731033005,3.2078,2394.2,2394.0,0.83476]
[1750731033207,0.83476,2394.1,2394.0,7.868]
[1750731033998,3.2078,2394.2,2394.0,7.868]
[1750731034408,0.83476,2394.1,2394.0,7.9317515]
[1750731034606,3.2078,2394.2,2394.0,7.9317515]
[1750731034809,0.83476,2394.1,2394.0,7.9317515]
[1750731035315,0.83476,2394.1,2394.0,0.0637515]
[1750731035502,2.16666,2394.1,2394.0,0.0637515]
[1750731037101,0.83476,2394.1,2394.0,0.0637515]
[1750731037613,1.8434503,2394.1,2394.0,1.5e-06]
[1750731037913,3.2511503,2394.1,2394.0,1.5e-06]
[1750731039214,0.83476,2394.1,2394.0,1.5e-06]
[1750731039402,1.84355956,2394.1,2394.0,1.5e-06]
[1750731039605,0.83476,2394.1,2394.0,1.5e-06]
[1750731039922,3.2078,2394.9,2394.0,56.3178015]
[1750731040107,3.2078,2394.7,2394.1,7.869]
[1750731040409,3.2078,2394.4,2394.1,7.869]
[1750731040617,5.67559031,2395.3,2394.4,2.08664]
[1750731040803,5.67559031,2395.3,2394.9,0.83447]
[1750731040804,3.2078,2395.3,2394.9,0.83447]
[1750731041003,3.2078,2395.3,2395.2,0.83437]
[1750731041205,3.2078,2395.3,2395.2,8.70337]
[1750731041410,3.2078,2395.3,2395.2,7.869]
[1750731041609,3.2078,2395.3,2395.2,8.70337]
[1750731042111,3.2078,2395.3,2394.9,1.4218]
[1750731042312,3.2078,2395.3,2395.0,7.869]
[1750731042515,3.2078,2395.3,2395.1,2.25619]
[1750731042818,0.7137,2396.3,2395.4,0.83429]
[1750731042819,4.04199,2395.8,2395.4,0.83429]
[1750731043115,4.04197,2395.8,2395.5,10.12405]
[1750731043413,3.2078,2395.8,2395.5,10.12406]
[1750731043608,0.83412,2396.0,2395.6,0.83423]
[1750731043815,0.83412,2396.0,2395.7,0.8342]
[1750731044014,0.83412,2396.0,2395.6,2.15172]
[1750731044213,0.83411,2396.0,2395.7,0.8342]
[1750731044414,4.04188,2396.1,2395.7,0.8342]
[1750731044617,3.2078,2396.1,2395.6,1.3175]
[1750731045109,0.83427,2395.5,2395.2,4.75487]
[1750731045314,0.83427,2395.5,2395.3,7.868]
[1750731045714,0.83425,2395.6,2395.3,7.868]
[1750731045913,0.83419,2395.8,2395.4,8.70029]
[1750731046118,0.83417,2395.8,2395.4,7.866]
[1750731046313,0.83421,2395.7,2395.4,7.866]
[1750731046710,0.83421,2395.7,2395.4,10.0732]
[1750731047013,0.8342,2395.7,2395.4,9.2389]
[1750731047208,0.8342,2395.7,2395.4,12.1611]
[1750731047816,0.83418,2395.8,2395.4,12.1611]
[1750731048116,0.83419,2395.8,2395.4,12.99539]
[1750731048417,0.83425,2395.6,2395.4,12.1611]
[1750731048806,0.83421,2395.7,2395.4,12.1611]
[1750731049011,0.83424,2395.6,2395.4,12.1611]
[1750731049211,0.83427,2395.5,2395.4,2.9222]
[1750731050114,0.83444,2395.0,2394.9,51.4424]
[1750731050309,4.04224,2395.0,2394.9,3.3404]
[1750731050510,4.04224,2395.0,2394.4,11.0728]
[1750731050511,3.2078,2395.0,2394.4,11.0728]
[1750731050714,0.83462,2394.5,2394.4,11.0728]
[1750731051006,0.83462,2394.5,2394.4,7.865]
[1750731051213,0.83472,2394.3,2393.9,3.8794]
[1750731051407,0.83463,2394.5,2394.2,0.8347]
[1750731051611,0.83463,2394.5,2394.2,4.0425]
[1750731051815,0.83463,2394.5,2394.2,3.2078]
[1750731052015,4.04238,2394.7,2394.3,0.83469]
[1750731052217,0.83458,2394.6,2394.3,0.83469]
[1750731052407,3.2078,2394.7,2394.4,7.866]
[1750731052917,0.8345,2394.9,2394.6,0.83456]
[1750731053115,1.3701,2395.2,2394.5,4.5858]
[1750731053314,0.83445,2395.0,2394.8,3.2078]
[1750731053513,0.83448,2394.9,2394.8,3.2078]
[1750731053715,0.83448,2394.9,2394.3,3.3412]
[1750731053716,3.2078,2394.9,2394.3,3.3412]
[1750731053915,4.04245,2394.4,2394.3,1.2804545]
[1750731054518,0.83473,2394.2,2393.9,3.2078]
[1750731054819,0.83474,2394.2,2393.9,3.2078]
[1750731055018,0.8347,2394.3,2394.0,0.83477]
[1750731055220,0.8347,2394.3,2394.1,7.888]
[1750731055714,0.8347,2394.3,2394.0,0.83477]
[1750731055919,0.8347,2394.3,2394.0,8.72277]
[1750731056115,4.04248,2394.4,2394.0,8.72277]
[1750731056317,3.2078,2394.4,2394.0,9.3366]
[1750731056520,0.8347,2394.3,2394.0,10.17138]
[1750731057313,0.83471,2394.3,2394.0,8.72279]
[1750731057723,0.83469,2394.3,2394.0,8.72277]
[1750731058025,0.83473,2394.2,2393.9,12.9749]
[1750731058227,0.83476,2394.1,2393.9,4.2521]
[1750731058429,2.254,2394.3,2393.9,12.1401]
[1750731058725,0.8347,2394.3,2394.0,0.83479]
[1750731058925,0.83525,2392.7,2392.6,3.29984473]
[1750731059224,3.2078,2391.7,2389.3,3.2078]
[1750731059425,3.2078,2389.8,2389.4,1.4053]
[1750731059723,2.08919,2391.5,2389.4,1.4053]
[1750731059724,5.21285867,2391.1,2390.1,2.089]
[1750731059924,2.46779031,2391.2,2390.2,9.146]
[1750731059925,3.2078,2390.6,2390.2,9.146]
[1750731060224,3.2078,2390.3,2389.8,0.83626]
[1750731060427,3.2078,2390.3,2389.9,9.146]
[1750731060626,3.2078,2390.3,2390.2,2.089]
[1750731061127,3.2078,2390.3,2390.2,56.42656706]
[1750731061434,3.2078,2390.5,2390.2,64.358]
[1750731061625,3.2078,2390.8,2390.3,1.4333]
[1750731061825,1.32862653,2390.7,2390.3,1.4333]
[1750731062017,3.2078,2390.8,2390.7,2.089]
[1750731062223,3.2078,2390.8,2390.4,9.15]
[1750731062527,3.2078,2391.3,2390.7,2.089]
[1750731062828,3.2078,2391.0,2390.5,1.4333]
[1750731063021,3.2078,2391.0,2390.8,0.3624]
[1750731063219,3.2078,2391.0,2390.9,11.239]
[1750731063521,3.2078,2391.3,2390.9,11.239]
[1750731063724,3.2078,2391.3,2391.1,2.089]
[1750731063927,3.2078,2391.3,2391.2,11.239]
[1750731064722,3.2078,2391.3,2391.2,11.3027515]
[1750731064922,3.2078,2391.3,2391.2,59.4397515]
[1750731065227,3.2078,2391.3,2391.2,50.2867515]
[1750731065531,3.2078,2391.3,2391.2,59.4397515]
[1750731067129,3.2078,2391.3,2391.2,59.4407515]
[1750731067334,3.2078,2391.3,2391.2,60.8846515]
[1750731067534,3.2078,2391.3,2391.2,90.6386515]
[1750731067832,3.2078,2391.3,2391.2,51.7306515]
[1750731068033,3.2078,2391.3,2391.2,60.8846515]
[1750731068234,3.2078,2391.3,2391.2,90.6106515]
[1750731069334,0.83568,2391.5,2391.2,90.5776515]
[1750731069631,4.04345,2391.6,2391.5,2.089]
[1750731070037,3.2078,2391.6,2391.5,9.155]
[1750731070228,4.04343,2391.6,2391.5,9.155]
[1750731070932,3.2078,2391.6,2391.5,11.244]
[1750731071131,0.0637515,2430.5,2391.5,11.244]
[1750731071132,3.2078,2392.5,2391.5,17.3628]
[1750731071335,3.2078,2392.5,2392.4,0.83535]
[1750731071535,4.04289,2393.2,2392.4,89.044]
[1750731071834,3.2078,2393.7,2393.1,2.089]
[1750731072030,6.0049,2394.1,2393.5,2.089]
[1750731072226,0.83484,2393.9,2393.7,2.089]
[1750731072425,5.3227,2394.1,2393.6,9.155]
[1750731072625,0.83479,2394.0,2393.9,2.089]
[1750731072826,3.2078,2394.1,2393.8,29.682]
[1750731073034,3.2078,2394.1,2394.0,0.83479]
[1750731073230,3.2078,2394.3,2394.0,2.089]
[1750731073429,0.83472,2394.2,2394.1,9.154]
[1750731073835,0.91825521,2394.2,2393.6,0.83492]
[1750731074037,0.91829869,2394.1,2394.0,2.089]
[1750731074237,4.12609869,2394.1,2394.0,2.089]
[1750731074437,3.29133869,2394.1,2393.7,1.4423]
[1750731074638,3.29133869,2394.1,2394.0,2.089]
[1750731074932,4.12609869,2394.1,2394.0,2.089]
[1750731075127,3.29133869,2394.1,2394.0,2.089]
[1750731076542,3.29133869,2394.1,2394.0,9.152]
[1750731076739,4.12610869,2394.1,2394.0,9.152]
[1750731077537,0.83483,2393.9,2393.8,1.4423]
[1750731077738,0.83483,2393.9,2393.8,10.5943]
[1750731077935,0.83483,2393.9,2393.8,12.6833]
[1750731078338,0.83483,2393.9,2393.8,2.089]
[1750731078547,0.83483,2393.9,2393.8,9.152]
[1750731079234,1.50736754,2393.9,2393.4,1.398]
[1750731079440,4.04277,2393.5,2393.4,1.398]
[1750731079741,4.04277,2393.5,2393.4,40.104]
[1750731080040,4.04277,2393.5,2393.4,3.487]
[1750731080541,3.2078,2393.5,2393.4,11.24]
[1750731080739,3.29038708,2394.6,2393.4,18.313]
[1750731080938,1.3707,2396.4,2394.5,7.46973781]
[1750731081145,1.59361001,2396.3,2395.8,3.2078]
[1750731081439,0.83413,2396.0,2395.8,3.2078]
[1750731081640,3.29127593,2395.9,2395.5,57.274]
[1750731081842,3.2078,2395.6,2395.5,57.274]
[1750731082136,0.91766942,2395.8,2395.5,57.274]
[1750731082137,1.45417942,2395.8,2395.5,57.274]
[1750731082539,3.2078,2395.7,2395.5,57.274]
[1750731082736,0.08347942,2395.8,2395.6,3.2078]
[1750731082929,0.08347942,2395.8,2395.5,48.123]
[1750731083129,0.08347942,2395.8,2395.7,9.148]
[1750731083331,0.08347942,2395.8,2395.7,9.9822]
[1750731083742,1.3599,2396.4,2395.7,9.148]
[1750731083943,1.3599,2396.4,2396.1,0.83404]
[1750731084241,0.083462,2396.3,2396.2,9.98201]
[1750731084736,0.083462,2396.3,2395.8,3.2078]
[1750731084941,2.75779889,2396.2,2395.9,9.148]
[1750731085241,0.91753897,2396.1,2395.9,9.148]
[1750731085439,0.08347245,2396.0,2395.9,9.148]
[1750731085934,1.3599,2396.1,2395.9,9.145]
[1750731088234,1.3599,2396.1,2395.7,1.0435]
[1750731088235,0.83409,2396.0,2395.7,1.0435]
[1750731088541,0.83411,2396.0,2395.8,9.144]
[1750731088741,0.83411,2396.0,2395.7,30.6465]
[1750731088742,0.83411,2396.0,2395.9,9.144]
[1750731090037,0.83413,2395.9,2395.7,1.0435]
[1750731090245,0.83413,2395.9,2395.8,9.068]
[1750731090635,2.25963,2395.9,2395.8,9.068]
[1750731091142,4.04191,2396.0,2395.8,9.068]
[1750731091346,3.2078,2396.0,2395.8,9.90216]
[1750731091940,3.2078,2396.0,2395.9,0.83413]
[1750731092140,3.2078,2396.3,2396.1,0.83405]
[1750731092349,0.83399,2396.3,2396.2,9.067]
[1750731092749,1.4255,2396.4,2396.2,9.90101]
[1750731093047,0.83399,2396.3,2396.2,9.067]
[1750731093246,2.25947,2396.4,2396.2,9.067]
[1750731094146,1.4255,2396.4,2396.2,9.90102]
[1750731094347,4.04171,2396.6,2396.3,0.83399]
[1750731094740,0.83392,2396.5,2396.2,9.901]
[1750731094940,4.04171,2396.6,2396.3,0.83397]
[1750731095246,4.04171,2396.6,2396.2,9.067]
[1750731095247,3.2078,2396.6,2396.4,77.477]
[1750731095451,0.83377,2397.0,2396.7,0.83383]
[1750731095744,0.83377,2397.0,2396.8,9.066]
[1750731095945,0.83373,2397.1,2396.8,9.89981]
[1750731096141,4.0415,2397.2,2396.9,0.83377]
[1750731096341,4.04149,2397.2,2396.9,0.83377]
[1750731096543,1.38880933,2397.1,2397.0,0.83375]
[1750731096746,3.20487631,2398.1,2398.0,0.8334]
[1750731096947,1.3998,2399.2,2398.0,86.7]
[1750731097150,1.3998,2399.2,2398.7,0.83313]
[1750731097339,1.3998,2399.2,2399.0,3.2078]
[1750731098349,0.7025,2399.6,2399.0,3.2078]
[1750731098545,0.83292,2399.4,2399.0,3.2078]
[1750731098747,2.081,2399.6,2398.7,1.3419]
[1750731098748,0.83312,2398.8,2398.7,3.2078]
[1750731098960,0.83323,2398.5,2398.4,3.2078]
[1750731099154,0.83321,2398.6,2398.2,9.065]
[1750731099348,1.3785,2398.4,2398.3,3.2078]
[1750731099648,1.3785,2398.4,2398.1,9.065]
[1750731099849,0.83333,2398.2,2398.1,9.065]
[1750731100154,0.83333,2398.2,2397.7,92.91029]
[1750731100455,0.83337,2398.1,2397.8,9.062]
[1750731100646,0.83334,2398.2,2397.8,9.062]
[1750731101442,2.21178,2398.4,2397.9,0.83341]
[1750731102046,0.8333,2398.3,2397.9,0.83341]
[1750731102242,0.8333,2398.3,2397.8,9.89545]
[1750731102447,0.8333,2398.3,2397.8,11.32945]
[1750731102643,1.3785,2398.4,2397.8,10.496]
[1750731102847,2.21178,2398.4,2397.9,0.83341]
[1750731103050,2.21178,2398.4,2397.8,10.496]
[1750731103051,3.24725502,2398.8,2398.4,0.83325]
[1750731103250,0.83315,2398.8,2398.5,9.06]
[1750731103451,2.41410502,2398.9,2398.5,9.06]
[1750731103657,4.59417502,2399.0,2398.6,3.2078]
[1750731103852,4.59417502,2399.0,2398.6,4.04098]
[1750731104049,2.18007,2399.0,2398.7,0.83316]
[1750731104246,1.347,2399.0,2398.6,3.2078]
[1750731104452,3.24711502,2399.2,2398.6,3.2078]
[1750731104653,3.24706502,2399.3,2398.9,4.04087]
[1750731104955,2.41410502,2399.4,2398.9,3.2078]
[1750731105255,0.83305,2399.0,2398.9,3.2078]
[1750731105449,3.73820502,2399.3,2398.9,9.06]
[1750731105650,2.41410502,2399.2,2398.9,9.06]
[1750731105952,1.3241,2399.1,2398.6,51.2528]
[1750731106156,0.83312,2398.8,2398.7,9.058]
[1750731106459,0.83312,2398.8,2398.6,51.2528]
[1750731106760,0.8331,2398.9,2398.6,51.2528]
[1750731106955,1.3241,2399.1,2398.6,51.2528]
[1750731107152,1.3241,2399.1,2398.7,38.602]
[1750731107347,2.41410502,2399.3,2399.0,3.2078]
[1750731107548,2.17682,2399.4,2399.0,3.2078]
[1750731107757,2.17682,2399.4,2399.3,3.2078]
[1750731108161,0.83292,2399.4,2399.3,12.2658]
[1750731108354,3.21949294,2401.0,2400.9,0.83239]
[1750731108556,0.08329862,2401.0,2400.9,12.2658]
[1750731108763,0.08329862,2401.0,2400.9,3.2078]
[1750731109058,1.3791708,2401.0,2400.9,12.2658]
[1750731109259,2.7230708,2401.0,2400.9,12.2658]
[1750731109458,1.3791708,2401.0,2400.9,3.2078]
[1750731109962,2.2115308,2401.0,2400.9,12.2648]
[1750731110149,1.3791708,2401.0,2400.9,12.2648]
[1750731110355,2.2115308,2401.0,2400.9,3.2715515]
[1750731110660,3.6507308,2401.0,2400.9,3.2715515]
[1750731110864,2.8183708,2401.0,2400.9,3.2715515]
[1750731111457,3.6507308,2401.0,2400.9,3.2715515]
[1750731111959,11.0261708,2401.0,2399.9,3.2078]
[1750731112156,3.2078,2400.6,2399.9,3.2078]
[1750731112359,3.2078,2400.2,2399.4,3.2078]
[1750731112565,2.73507218,2400.1,2399.4,3.2078]
[1750731112765,3.2078,2399.9,2399.3,3.2078]
[1750731112966,0.8329,2399.5,2399.3,3.2078]
[1750731113162,0.83291,2399.4,2399.3,3.2078]
[1750731113358,0.83291,2399.4,2399.2,57.079]
[1750731113560,0.83295,2399.3,2399.2,57.079]
[1750731113862,0.83295,2399.3,2399.2,48.025]
[1750731114054,0.83291,2399.5,2399.2,48.025]
[1750731114258,1.2819664,2399.4,2399.3,3.2078]
[1750731114460,2.1148764,2399.4,2399.3,3.2078]
[1750731114659,2.11476911,2399.4,2399.3,3.2078]
[1750731114860,2.11496485,2399.4,2399.3,3.2078]
[1750731115060,0.83285,2399.6,2399.3,3.2078]
[1750731115261,2.15539,2399.8,2399.3,3.2078]
[1750731115562,2.11492996,2399.7,2399.3,3.2078]
[1750731115758,1.28211996,2399.6,2399.3,3.2078]
[1750731115963,1.3226,2399.8,2399.4,9.053]
[1750731116166,1.28256219,2399.7,2399.4,9.053]
[1750731116369,1.28256219,2399.6,2399.4,9.053]
[1750731116561,0.83285,2399.6,2399.3,4.5473]
[1750731116761,0.83285,2399.6,2399.4,9.053]
[1750731117062,0.83291,2399.4,2399.3,3.2078]
[1750731117261,0.83291,2399.4,2399.3,12.2608]
[1750731117458,3.2078,2399.9,2399.3,12.2608]
[1750731117665,0.83262,2400.3,2399.8,0.83277]
[1750731117967,3.2078,2400.2,2399.7,9.053]
[1750731118164,4.6103,2400.2,2399.7,9.053]
[1750731118364,0.83273,2400.0,2399.7,9.053]
[1750731118665,0.83273,2400.0,2399.5,32.9758]
[1750731118666,0.83269,2400.1,2399.5,4.04067]
[1750731118862,1.4025,2400.0,2399.6,9.053]
[1750731119064,1.4025,2400.0,2399.6,9.88583]
[1750731119259,1.4025,2400.0,2399.7,0.8328]
[1750731119466,1.4025,2400.0,2399.6,9.88582]
[1750731119671,1.4025,2400.0,2399.7,0.83281]
[1750731119870,3.21949294,2400.9,2400.0,0.8327]
[1750731120064,3.2078,2400.7,2400.1,9.053]
[1750731120371,2.17652,2400.6,2400.1,9.88567]
[1750731120567,0.83258,2400.4,2400.1,9.053]
[1750731120772,0.83255,2400.5,2400.2,1.0415]
[1750731121668,0.8326,2400.3,2400.2,1.0415]
[1750731122067,0.83272,2400.0,2399.7,3.2078]
[1750731122273,0.83283,2399.7,2399.4,3.2078]
[1750731122769,1.3381,2399.9,2399.4,3.2078]
[1750731122967,0.83283,2399.7,2399.4,3.2078]
[1750731123167,0.83288,2399.5,2399.4,3.2078]
[1750731123470,1.3381,2399.9,2399.4,3.2078]
[1750731123672,4.55759294,2399.9,2399.4,3.2078]
[1750731123865,0.83283,2399.7,2399.4,3.2078]
[1750731124067,4.55759294,2399.9,2399.4,3.2078]
[1750731124363,0.83279,2399.8,2399.4,4.5558]
[1750731124564,0.83276,2399.9,2399.4,5.38871]
[1750731124766,0.83276,2399.9,2399.5,0.83288]
[1750731125073,4.05225294,2399.9,2399.4,14.60068]
[1750731125273,3.21949294,2400.0,2399.5,9.212]
[1750731125472,0.83284,2399.7,2399.5,9.212]
[1750731125675,0.83284,2399.7,2399.4,3.2078]
[1750731125874,6.42729294,2399.5,2398.6,3.8867]
[1750731126075,0.83314,2398.8,2398.6,3.2078]
[1750731126276,0.83316,2398.7,2398.6,3.2078]
[1750731126567,6.45784335,2398.8,2398.4,9.212]
[1750731126774,1.3506,2398.7,2398.4,9.212]
[1750731126965,0.83323,2398.5,2398.4,9.212]
[1750731127163,0.83328,2398.4,2398.1,1.3924]
[1750731127366,0.83334,2398.2,2397.7,4.04129]
[1750731127568,0.83339,2398.1,2397.7,12.4208]
[1750731127867,0.8334,2398.0,2397.7,12.4208]
[1750731128069,0.83343,2397.9,2397.8,3.3363]
[1750731128265,3.27143549,2398.0,2397.8,3.3363]
[1750731128472,4.59394549,2397.9,2397.8,3.3363]
[1750731128974,3.76051549,2397.9,2397.8,3.3363]
[1750731129176,2.43801549,2397.9,2397.8,3.3363]
[1750731129374,3.25004335,2398.1,2397.8,3.3363]
[1750731129672,2.43667775,2397.9,2397.8,3.3363]
[1750731129872,3.70709706,2397.9,2397.8,4.16977]
[1750731130075,3.70709706,2397.9,2397.8,5.58077]
[1750731130271,1.27041931,2397.9,2397.8,5.58077]
[1750731130476,1.27041931,2397.9,2397.8,10.58077]
[1750731131075,2.43667775,2398.3,2398.2,0.83333]
[1750731131278,2.43667775,2398.4,2398.3,0.8333]
[1750731131873,2.43667775,2398.4,2398.2,0.83331]
[1750731132074,2.43667775,2398.4,2398.2,2.28971]
[1750731132480,2.43667775,2398.5,2398.2,1.4564]
[1750731132679,3.26990775,2398.5,2398.2,1.4564]
[1750731132880,2.43667775,2398.5,2398.2,1.4564]
[1750731133271,3.26990775,2398.5,2398.2,1.4564]
[1750731133668,2.43667775,2398.5,2398.2,1.4564]
[1750731134174,2.43667775,2398.6,2398.4,3.2078]
[1750731134375,6.45784335,2399.8,2398.5,95.48900808]
[1750731134574,3.25004335,2399.9,2399.1,3.2078]
[1750731134773,5.36314335,2400.1,2399.5,3.2078]
[1750731134974,0.83277,2399.9,2399.5,3.2078]
[1750731135279,1.4487,2399.8,2399.5,3.2078]
[1750731136580,2.28149,2399.8,2399.5,3.2078]
[1750731136877,0.83283,2399.7,2399.5,3.2078]
[1750731137077,0.83293,2399.4,2399.2,3.2078]
[1750731137388,3.2078,2399.7,2399.2,3.2078]
[1750731137389,0.83288,2399.5,2399.2,3.2078]
[1750731137683,1.3369,2399.4,2399.2,3.2078]
[1750731138580,0.83285,2399.6,2399.2,3.2078]
[1750731138787,1.3369,2399.6,2399.2,3.2078]
[1750731138986,0.8329,2399.5,2399.2,3.2078]
[1750731139171,4.5447,2399.4,2399.0,0.4973]
[1750731139376,3.2078,2399.1,2398.4,3.2078]
[1750731139570,3.2078,2398.8,2398.3,10.04728]
[1750731139874,3.2078,2398.8,2398.4,0.83326]
[1750731140075,3.2078,2398.8,2398.3,10.04728]
[1750731140276,4.04094,2398.8,2398.3,10.04728]
[1750731140676,4.04094,2398.8,2398.4,0.83326]
[1750731140877,4.04094,2398.8,2398.4,2.25236]
[1750731141982,4.04094,2398.8,2398.4,2.25235]
[1750731142180,3.2078,2398.8,2398.5,0.83322]
[1750731142383,3.2078,2398.8,2398.5,1.4191]
[1750731142580,3.2078,2398.8,2398.7,0.83316]
[1750731142789,3.2078,2398.8,2398.7,9.72516]
[1750731143176,4.39260081,2398.8,2398.7,8.892]
[1750731143380,4.39260081,2398.8,2398.6,8.892]
[1750731143684,1.18480081,2398.7,2398.6,8.892]
[1750731143881,3.2078,2398.8,2398.6,8.892]
[1750731144282,1.18478441,2398.7,2398.6,8.892]
[1750731145086,3.2078,2398.8,2398.6,9.72518]
[1750731145588,3.2078,2398.8,2398.7,0.83316]
[1750731145885,0.83292,2399.4,2399.2,0.0637515]
[1750731146085,1.18509659,2399.3,2399.2,0.0637515]
[1750731146287,1.18509659,2399.3,2399.2,0.8967315]
[1750731146495,1.18509659,2399.3,2399.2,2.2504315]
[1750731146681,3.2078,2399.7,2399.2,2.2504315]
[1750731146879,1.18529506,2399.6,2399.2,1.4174515]
[1750731147191,1.18529506,2399.5,2399.3,2.18663]
[1750731147689,1.18529506,2399.5,2399.3,1.3537]
[1750731147890,3.2078,2399.7,2399.5,0.83288]
[1750731148087,1.18541205,2399.6,2399.5,0.83288]
[1750731148291,3.2078,2399.7,2399.5,9.72488]
[1750731148485,3.2078,2399.7,2399.3,1.3537]
[1750731148486,4.04063,2399.7,2399.3,1.3537]
[1750731148686,3.2078,2399.7,2399.5,8.892]
[1750731148987,1.5531,2399.8,2399.5,8.892]
[1750731149188,2.01933836,2399.7,2399.5,8.892]
[1750731149391,1.55309,2399.8,2399.5,8.892]
[1750731149583,1.18651155,2399.7,2399.5,8.892]
[1750731149783,1.55309,2399.8,2399.5,8.892]
[1750731149985,2.01948737,2399.7,2399.5,8.892]
[1750731150187,2.01948737,2399.7,2399.3,3.2078]
[1750731150188,0.83291,2399.4,2399.3,3.2078]
[1750731150379,0.8329,2399.5,2399.3,3.2078]
[1750731151191,2.26327,2399.6,2399.3,3.2078]
[1750731151388,0.83288,2399.5,2399.3,3.2078]
[1750731152591,0.83291,2399.4,2399.3,3.2078]
[1750731152793,2.26326,2399.6,2399.3,4.04075]
[1750731152994,1.4304,2399.6,2399.3,4.04073]
[1750731153197,4.04063,2399.7,2399.3,4.04073]
[1750731153491,0.7203,2399.8,2399.3,3.2078]
[1750731153689,1.18642143,2399.7,2399.4,0.8329]
[1750731153885,1.5531,2399.8,2399.4,0.8329]
[1750731154304,4.5872,2400.0,2399.4,1.4]
[1750731154602,3.2078,2400.0,2399.4,1.4]
[1750731154997,3.2078,2400.0,2399.9,0.83274]
[1750731155698,3.2078,2400.0,2399.8,9.72376]
[1750731155899,4.04053,2400.0,2399.8,8.891]
[1750731156100,0.83274,2399.9,2399.8,8.891]
[1750731156593,3.2078,2400.0,2399.9,0.83274]
[1750731156798,3.2078,2400.0,2399.9,2.25884]
[1750731157103,3.2078,2400.0,2399.9,1.4261]
[1750731157302,3.2078,2400.0,2399.9,2.25884]
[1750731157901,4.7266,2400.4,2400.1,0.83265]
[1750731158093,4.7266,2400.4,2399.9,1.4261]
[1750731158094,3.894,2400.4,2399.9,1.4261]
[1750731158402,4.72659,2400.4,2400.2,8.89]
[1750731158595,3.894,2400.4,2400.2,8.89]
[1750731158802,4.72657,2400.4,2400.2,8.89]
[1750731159597,0.8326,2400.3,2400.2,8.89]
[1750731159995,3.894,2400.4,2399.7,48.002]
[1750731160188,0.83274,2399.9,2399.8,8.89]
[1750731160396,0.83278,2399.8,2399.7,48.002]
[1750731160600,0.83276,2399.9,2399.7,56.892]
[1750731160802,0.83278,2399.8,2399.7,48.002]
[1750731160997,2.27138,2399.8,2399.7,48.002]
[1750731161295,0.83291,2399.5,2399.4,8.89]
[1750731161896,4.04071,2399.5,2399.4,8.89]
[1750731162105,4.04068,2399.5,2399.4,8.89]
[1750731162999,4.04068,2399.5,2399.3,0.0637515]
[1750731163197,4.04068,2399.5,2399.4,8.89]